fUST/lending_fUST_20250520
["ID","MTS","AMOUNT","RATE_DAILY","PERIOD"]
[361668936,1747678269149,-291.36582282,0.00019726,2]
[361668937,1747678269159,-579.0717906,0.00019726,2]
[361668938,1747678269168,-2124.49,0.00019726,2]
[361668939,1747678269179,-701.29,0.00019726,2]
[361668940,1747678269189,-501.83,0.00019726,2]
[361668941,1747678269200,-1561.15,0.00019726,2]
[361668942,1747678269212,-441.96,0.00019726,2]
[361668943,1747678269222,-899.12,0.00019726,2]
[361668944,1747678269232,-1104.97,0.00019726,2]
[361668945,1747678269241,-430.0,0.00019726,2]
[361668946,1747678269251,-430.0,0.00019726,2]
[361668947,1747678269260,-2522.44,0.00019726,2]
[361668948,1747678269270,-452.18522003,0.00019726,2]
[361668949,1747678269279,-468.08,0.00019726,2]
[361668950,1747678269289,-2904.2,0.00019726,2]
[361668951,1747678269299,-478.87,0.00019726,2]
[361668952,1747678269308,-1119.33,0.00019726,2]
[361668953,1747678269318,-561.73,0.00019726,2]
[361668954,1747678269327,-1123.5,0.00019726,2]
[361668955,1747678269337,-926.76,0.00019726,2]
[361668956,1747678269346,-1799.58,0.00019726,2]
[361668957,1747678269356,-2130.66,0.00019726,2]
[361668958,1747678269366,-430.0,0.00019726,2]
[361668959,1747678269375,-430.0,0.00019726,2]
[361668960,1747678269385,-430.0,0.00019726,2]
[361668961,1747678269394,-510.7,0.00019726,2]
[361668962,1747678269403,-516.25349897,0.00019726,2]
[361668963,1747678269413,-430.0,0.00019726,2]
[361668964,1747678269422,-1184.09,0.00019726,2]
[361668965,1747678269432,-430.0,0.00019726,2]
[361668966,1747678269440,-736.8,0.00019726,2]
[361668967,1747678269450,-430.0,0.00019726,2]
[361668968,1747678269460,-581.31,0.00019726,2]
[361668969,1747678269470,-752.45,0.00019726,2]
[361668970,1747678269479,-695.3,0.00019726,2]
[361668971,1747678269489,-716.17,0.00019726,2]
[361668972,1747678269498,-1529.7,0.00019726,2]
[361668973,1747678269508,-10872.38156819,0.00019741,2]
[361668974,1747678269518,-1500.0,0.00019768,2]
[361668975,1747678269528,-1500.0,0.00019768,2]
[361668976,1747678269538,-1500.0,0.00019768,2]
[361668977,1747678269548,-1500.0,0.00019768,2]
[361668978,1747678269558,-1500.0,0.00019768,2]
[361668979,1747678269567,-1500.0,0.00019768,2]
[361668980,1747678269577,-1500.0,0.00019768,2]
[361668981,1747678269586,-1500.0,0.00019768,2]
[361668982,1747678269596,-1500.0,0.00019768,2]
[361668983,1747678269605,-1500.0,0.00019768,2]
[361668984,1747678269615,-1624.58327763,0.00019768,2]
[361668985,1747678269625,-1500.0,0.00019768,2]
[361668986,1747678269635,-1500.0,0.00019768,2]
[361668987,1747678269645,-1500.0,0.00019768,2]
[361668988,1747678269654,-1500.0,0.00019768,2]
[361668989,1747678269663,-1500.0,0.00019768,2]
[361668990,1747678269673,-1500.0,0.00019768,2]
[361668991,1747678269682,-1500.0,0.00019768,2]
[361668992,1747678269692,-1500.0,0.00019768,2]
[361668993,1747678269701,-1500.0,0.00019768,2]
[361668994,1747678269711,-1500.0,0.00019768,2]
[361668995,1747678269720,-1000.0,0.00019896,3]
[361668996,1747678269729,-4854.67001534,0.00019969,2]
[361668997,1747678269738,-2000.0,0.0002,2]
[361668998,1747678269748,-350.0,0.0002,2]
[361668999,1747678269758,-350.0,0.0002,5]
[361669000,1747678269778,-50282.02735632,0.0002,20]
[361669001,1747678269788,-84103.77477563,0.0002,2]
[361669002,1747678269798,-559.0,0.0002,2]
[361669003,1747678269811,-1467.0,0.0002,2]
[361669004,1747678269821,-2046.0,0.0002,2]
[361669005,1747678269831,-430.0,0.0002,2]
[361669006,1747678269840,-430.0,0.0002,2]
[361669007,1747678269851,-499.51,0.0002,2]
[361669008,1747678269861,-331.63062636,0.0002,2]
[361669009,1747678269870,-430.0,0.0002,2]
[361669010,1747678269881,-686.82,0.0002,2]
[361669011,1747678269891,-202.3229664,0.0002,2]
[361669012,1747678269900,-430.0,0.0002,2]
[361669013,1747678269910,-776.59,0.0002,2]
[361669014,1747678269919,-430.0,0.0002,2]
[361669015,1747678269930,-253.23365766,0.0002,2]
[361669016,1747678269939,-430.0,0.0002,2]
[361669017,1747678269949,-681.39,0.0002,2]
[361669018,1747678269959,-430.0,0.0002,2]
[361669019,1747678269969,-430.0,0.0002,2]
[361669020,1747678269980,-516.86,0.0002,2]
[361669021,1747678269989,-629.1,0.0002,2]
[361669022,1747678269999,-430.0,0.0002,2]
[361669023,1747678270008,-430.0,0.0002,2]
[361669024,1747678270018,-1132.44,0.0002,2]
[361669025,1747678270028,-430.0,0.0002,2]
[361669026,1747678270038,-852.15,0.0002,2]
[361669027,1747678270047,-875.09,0.0002,2]
[361669028,1747678270057,-605.64,0.0002,2]
[361669029,1747678270066,-430.0,0.0002,2]
[361669030,1747678270076,-430.0,0.0002,2]
[361669031,1747678270085,-430.0,0.0002,2]
[361669032,1747678270095,-430.0,0.0002,2]
[361669033,1747678270105,-545.76,0.0002,2]
[361669034,1747678270114,-430.0,0.0002,2]
[361669035,1747678270124,-430.0,0.0002,2]
[361669036,1747678270133,-430.0,0.0002,2]
[361669037,1747678270142,-430.0,0.0002,2]
[361669038,1747678270152,-671.94,0.0002,2]
[361669039,1747678270163,-701.04,0.0002,2]
[361669040,1747678270172,-269.42056013,0.0002,2]
[361669041,1747678270182,-430.0,0.0002,2]
[361669042,1747678270192,-575.34,0.0002,2]
[361669043,1747678270201,-430.0,0.0002,2]
[361669044,1747678270210,-433.77,0.0002,2]
[361669045,1747678270219,-430.0,0.0002,2]
[361669046,1747678270227,-542.00027318,0.0002,2]
[361669047,1747678270237,-430.0,0.0002,2]
[361669048,1747678270246,-430.0,0.0002,2]
[361669049,1747678270255,-430.0,0.0002,2]
[361669050,1747678270264,-439.55,0.0002,2]
[361669051,1747678270273,-430.0,0.0002,2]
[361669052,1747678270283,-451.43,0.0002,2]
[361669053,1747678270292,-430.0,0.0002,2]
[361669054,1747678270301,-430.0,0.0002,2]
[361669055,1747678270310,-745.65,0.0002,2]
[361669056,1747678270319,-430.0,0.0002,2]
[361669057,1747678270328,-183.07084511,0.0002,2]
[361669058,1747678270337,-430.0,0.0002,2]
[361669059,1747678270346,-430.0,0.0002,2]
[361669060,1747678270356,-430.0,0.0002,2]
[361669061,1747678270365,-430.0,0.0002,2]
[361669062,1747678270374,-438.7,0.0002,2]
[361669063,1747678270384,-434.58,0.0002,2]
[361669064,1747678270393,-430.0,0.0002,2]
[361669065,1747678270402,-430.0,0.0002,2]
[361669066,1747678270411,-1375.68,0.0002,2]
[361669067,1747678270420,-430.0,0.0002,2]
[361669068,1747678270429,-430.0,0.0002,2]
[361669069,1747678270438,-430.0,0.0002,2]
[361669070,1747678270447,-551.59,0.0002,2]
[361669071,1747678270457,-430.0,0.0002,2]
[361669072,1747678270466,-430.0,0.0002,2]
[361669073,1747678270475,-430.0,0.0002,2]
[361669074,1747678270487,-496.33879631,0.0002,2]
[361669075,1747678270496,-430.0,0.0002,2]
[361669076,1747678270506,-530.62,0.0002,2]
[361669077,1747678270515,-430.0,0.0002,2]
[361669078,1747678270526,-2065.45,0.0002,2]
[361669079,1747678270535,-157.85,0.0002,2]
[361669080,1747678270545,-157.85,0.0002,2]
[361669081,1747678270554,-430.0,0.0002,2]
[361669082,1747678270564,-430.0,0.0002,2]
[361669083,1747678270573,-430.0,0.0002,2]
[361669084,1747678270583,-2491.97,0.0002,2]
[361669085,1747678270593,-864.52,0.0002,2]
[361669086,1747678270602,-430.0,0.0002,2]
[361669087,1747678270612,-637.32,0.0002,2]
[361669088,1747678270622,-1871.71,0.0002,2]
[361669089,1747678270631,-430.0,0.0002,2]
[361669090,1747678270641,-4063.35,0.0002,2]
[361669091,1747678270650,-430.0,0.0002,2]
[361669092,1747678270659,-430.0,0.0002,2]
[361669093,1747678270669,-685.18,0.0002,2]
[361669094,1747678270678,-430.0,0.0002,2]
[361669095,1747678270688,-817.13,0.0002,2]
[361669096,1747678270698,-430.0,0.0002,2]
[361669097,1747678270707,-430.0,0.0002,2]
[361669098,1747678270717,-5294.37,0.0002,2]
[361669099,1747678270726,-534.03,0.0002,2]
[361669100,1747678270736,-430.0,0.0002,2]
[361669101,1747678270746,-430.0,0.0002,2]
[361669102,1747678270755,-566.9,0.0002,2]
[361669103,1747678270901,-430.0,0.0002,2]
[361669104,1747678270911,-2065.21,0.0002,2]
[361669105,1747678270921,-537.77,0.0002,2]
[361669106,1747678270931,-430.0,0.0002,2]
[361669107,1747678270940,-430.0,0.0002,2]
[361669108,1747678270949,-4975.86,0.0002,2]
[361669109,1747678270958,-430.0,0.0002,2]
[361669110,1747678270968,-835.39,0.0002,2]
[361669111,1747678270977,-430.0,0.0002,2]
[361669112,1747678270987,-1400.2,0.0002,2]
[361669113,1747678270996,-1072.15,0.0002,2]
[361669114,1747678271006,-1314.62,0.0002,2]
[361669115,1747678271015,-1095.34,0.0002,2]
[361669116,1747678271024,-430.0,0.0002,2]
[361669117,1747678271033,-1638.88,0.0002,2]
[361669118,1747678271043,-430.0,0.0002,2]
[361669119,1747678271052,-160.0,0.0002,3]
[361669120,1747678271061,-1009.6,0.0002,2]
[361669121,1747678271072,-430.0,0.0002,2]
[361669122,1747678271081,-656.69,0.0002,2]
[361669123,1747678271090,-7287.93,0.0002,2]
[361669124,1747678271100,-430.0,0.0002,2]
[361669125,1747678271109,-1675.27,0.0002,2]
[361669126,1747678271118,-430.0,0.0002,2]
[361669127,1747678271128,-4789.9,0.0002,2]
[361669128,1747678271137,-430.0,0.0002,2]
[361669129,1747678271146,-430.0,0.0002,2]
[361669130,1747678271155,-582.76,0.0002,2]
[361669131,1747678271164,-1475.08,0.0002,2]
[361669132,1747678271174,-430.0,0.0002,2]
[361669133,1747678271184,-3802.2,0.0002,2]
[361669134,1747678271193,-441.87,0.0002,2]
[361669135,1747678271202,-2022.39,0.0002,2]
[361669136,1747678271212,-485.51375175,0.0002,2]
[361669137,1747678271221,-3870.66,0.0002,2]
[361669138,1747678271231,-4521.89,0.0002,2]
[361669139,1747678271241,-430.0,0.0002,2]
[361669140,1747678271250,-430.0,0.0002,2]
[361669141,1747678271260,-623.36,0.0002,2]
[361669142,1747678271269,-1455.67,0.0002,2]
[361669143,1747678271279,-430.0,0.0002,2]
[361669144,1747678271287,-1638.01,0.0002,2]
[361669145,1747678271297,-542.53,0.0002,2]
[361669146,1747678271306,-861.13,0.0002,2]
[361669147,1747678271315,-430.0,0.0002,2]
[361669148,1747678271324,-735.09,0.0002,2]
[361669149,1747678271333,-430.0,0.0002,2]
[361669150,1747678271343,-446.73,0.0002,2]
[361669151,1747678271352,-430.0,0.0002,2]
[361669152,1747678271362,-906.22,0.0002,2]
[361669153,1747678271372,-430.0,0.0002,2]
[361669154,1747678271382,-430.0,0.0002,2]
[361669155,1747678271391,-2900.95,0.0002,2]
[361669156,1747678271400,-430.0,0.0002,2]
[361669157,1747678271410,-430.0,0.0002,2]
[361669158,1747678271419,-668.98,0.0002,2]
[361669159,1747678271428,-806.41,0.0002,2]
[361669160,1747678271437,-300.0,0.0002,2]
[361669161,1747678271448,-430.0,0.0002,2]
[361669162,1747678271457,-430.0,0.0002,2]
[361669163,1747678271466,-430.0,0.0002,2]
[361669164,1747678271475,-853.48,0.0002,2]
[361669165,1747678271487,-430.0,0.0002,2]
[361669166,1747678271497,-996.23,0.0002,2]
[361669167,1747678271506,-1223.52,0.0002,2]
[361669168,1747678271516,-1390.5,0.0002,2]
[361669169,1747678271525,-430.0,0.0002,2]
[361669170,1747678271535,-262.20319217,0.0002,2]
[361669171,1747678271546,-430.0,0.0002,2]
[361669172,1747678271556,-430.0,0.0002,2]
[361669173,1747678271566,-230.2277991,0.0002,2]
[361669174,1747678271576,-1409.57,0.0002,2]
[361669175,1747678271586,-2124.49,0.0002,2]
[361669176,1747678271595,-701.29,0.0002,2]
[361669177,1747678271605,-501.83,0.0002,2]
[361669178,1747678271616,-1561.15,0.0002,2]
[361669179,1747678271625,-441.96,0.0002,2]
[361669180,1747678271634,-899.12,0.0002,2]
[361669181,1747678271644,-1104.97,0.0002,2]
[361669182,1747678271653,-430.0,0.0002,2]
[361669183,1747678271663,-430.0,0.0002,2]
[361669184,1747678271672,-2522.44,0.0002,2]
[361669185,1747678271682,-468.08,0.0002,2]
[361669186,1747678271691,-2904.2,0.0002,2]
[361669187,1747678271701,-478.87,0.0002,2]
[361669188,1747678271710,-1119.33,0.0002,2]
[361669189,1747678271720,-561.73,0.0002,2]
[361669190,1747678271730,-1123.5,0.0002,2]
[361669191,1747678271740,-926.76,0.0002,2]
[361669192,1747678271750,-1799.58,0.0002,2]
[361669193,1747678271759,-430.0,0.0002,2]
[361669194,1747678271768,-2130.66,0.0002,2]
[361669195,1747678271777,-430.0,0.0002,2]
[361669196,1747678271786,-430.0,0.0002,2]
[361669197,1747678271796,-510.7,0.0002,2]
[361669198,1747678271811,-4000.0,0.0002,4]
[361669199,1747678271820,-430.0,0.0002,2]
[361669200,1747678271830,-1184.09,0.0002,2]
[361669201,1747678271839,-430.0,0.0002,2]
[361669202,1747678271849,-736.8,0.0002,2]
[361669203,1747678271858,-430.0,0.0002,2]
[361669204,1747678271867,-581.31,0.0002,2]
[361669205,1747678271878,-752.45,0.0002,2]
[361669206,1747678271887,-695.3,0.0002,2]
[361669207,1747678271897,-716.17,0.0002,2]
[361669208,1747678271906,-1529.7,0.0002,2]
[361669209,1747678271916,-485.84869426,0.00020016,2]
[361669210,1747678271925,-1500.0,0.00020016,2]
[361669211,1747678271934,-933.71540513,0.00020016,2]
[361669212,1747678271943,-2000.0,0.00020016,2]
[361669213,1747678271953,-2000.0,0.00020016,2]
[361669214,1747678271962,-687.12955491,0.00020016,2]
[361669215,1747678271972,-507.89374877,0.00020068,2]
[361669216,1747678271982,-958.67875532,0.00020068,2]
[361669217,1747678271991,-1000.0,0.00020072,2]
[361669218,1747678272000,-500.30039368,0.00020072,2]
[361669219,1747678272010,-1500.0,0.00020099,3]
[361669220,1747678272019,-351.339152,0.00020187,2]
[361669221,1747678272029,-1000.0,0.00020248,2]
[361669222,1747678272039,-825.94786273,0.00020248,2]
[361669223,1747678272049,-1000.0,0.00020248,2]
[361669224,1747678272058,-1000.0,0.00020248,2]
[361669225,1747678272067,-1000.0,0.00020248,2]
[361669226,1747678272076,-1000.0,0.00020248,2]
[361669227,1747678272085,-1000.0,0.00020248,2]
[361669228,1747678272095,-1000.0,0.00020248,2]
[361669229,1747678272103,-430.0,0.00020273,2]
[361669230,1747678272113,-430.0,0.00020273,2]
[361669231,1747678272122,-499.51,0.00020273,2]
[361669232,1747678272131,-355.5068761,0.00020273,2]
[361669233,1747678272140,-686.82,0.00020273,2]
[361669234,1747678272150,-430.0,0.00020273,2]
[361669235,1747678272159,-430.0,0.00020273,2]
[361669236,1747678272168,-776.59,0.00020273,2]
[361669237,1747678272178,-430.0,0.00020273,2]
[361669238,1747678272187,-681.39,0.00020273,2]
[361669239,1747678272197,-430.0,0.00020273,2]
[361669240,1747678272206,-570.04202175,0.00020273,2]
[361669241,1747678272215,-516.86,0.00020273,2]
[361669242,1747678272225,-629.1,0.00020273,2]
[361669243,1747678272233,-525.67381935,0.00020273,2]
[361669244,1747678272243,-430.0,0.00020273,2]
[361669245,1747678272252,-1132.44,0.00020273,2]
[361669246,1747678272261,-430.0,0.00020273,2]
[361669247,1747678272271,-852.15,0.00020273,2]
[361669248,1747678272280,-875.09,0.00020273,2]
[361669249,1747678272290,-605.64,0.00020273,2]
[361669250,1747678272299,-430.0,0.00020273,2]
[361669251,1747678272309,-430.0,0.00020273,2]
[361669252,1747678272319,-430.0,0.00020273,2]
[361669253,1747678272329,-430.0,0.00020273,2]
[361669254,1747678272338,-545.76,0.00020273,2]
[361669255,1747678272347,-430.0,0.00020273,2]
[361669256,1747678272357,-430.0,0.00020273,2]
[361669257,1747678272366,-430.0,0.00020273,2]
[361669258,1747678272375,-430.0,0.00020273,2]
[361669259,1747678272384,-671.94,0.00020273,2]
[361669260,1747678272394,-701.04,0.00020273,2]
[361669261,1747678272404,-430.0,0.00020273,2]
[361669262,1747678272413,-575.34,0.00020273,2]
[361669263,1747678272422,-430.0,0.00020273,2]
[361669264,1747678272431,-433.77,0.00020273,2]
[361669265,1747678272440,-430.0,0.00020273,2]
[361669266,1747678272449,-430.0,0.00020273,2]
[361669267,1747678272458,-430.0,0.00020273,2]
[361669268,1747678272467,-430.0,0.00020273,2]
[361669269,1747678272477,-439.55,0.00020273,2]
[361669270,1747678272486,-430.0,0.00020273,2]
[361669271,1747678272496,-451.43,0.00020273,2]
[361669272,1747678272506,-430.0,0.00020273,2]
[361669273,1747678272516,-430.0,0.00020273,2]
[361669274,1747678272526,-745.65,0.00020273,2]
[361669275,1747678272535,-252.94188381,0.00020273,2]
[361669276,1747678272544,-430.0,0.00020273,2]
[361669277,1747678272553,-430.0,0.00020273,2]
[361669278,1747678272562,-430.0,0.00020273,2]
[361669279,1747678272571,-430.0,0.00020273,2]
[361669280,1747678272580,-438.7,0.00020273,2]
[361669281,1747678272590,-434.58,0.00020273,2]
[361669282,1747678272599,-430.0,0.00020273,2]
[361669283,1747678272609,-430.0,0.00020273,2]
[361669284,1747678272618,-1375.68,0.00020273,2]
[361669285,1747678272628,-430.0,0.00020273,2]
[361669286,1747678272637,-430.0,0.00020273,2]
[361669287,1747678272647,-259.21142723,0.00020273,2]
[361669288,1747678272657,-551.59,0.00020273,2]
[361669289,1747678272666,-430.0,0.00020273,2]
[361669290,1747678272676,-430.0,0.00020273,2]
[361669291,1747678272685,-430.0,0.00020273,2]
[361669292,1747678272793,-430.0,0.00020273,2]
[361669293,1747678272805,-530.62,0.00020273,2]
[361669294,1747678272817,-430.0,0.00020273,2]
[361669295,1747678272826,-2065.45,0.00020273,2]
[361669296,1747678272835,-430.0,0.00020273,2]
[361669297,1747678272847,-430.0,0.00020273,2]
[361669298,1747678272857,-430.0,0.00020273,2]
[361669299,1747678272867,-2491.97,0.00020273,2]
[361669300,1747678272876,-864.52,0.00020273,2]
[361669301,1747678272885,-430.0,0.00020273,2]
[361669302,1747678272895,-637.32,0.00020273,2]
[361669303,1747678272905,-1871.71,0.00020273,2]
[361669304,1747678272914,-475.72250354,0.00020273,2]
[361669305,1747678272923,-4063.35,0.00020273,2]
[361669306,1747678272933,-430.0,0.00020273,2]
[361669307,1747678272942,-366.836006,0.00020273,2]
[361669308,1747678272952,-685.18,0.00020273,2]
[361669309,1747678272961,-430.0,0.00020273,2]
[361669310,1747678272970,-817.13,0.00020273,2]
[361669311,1747678272979,-430.0,0.00020273,2]
[361669312,1747678272989,-430.0,0.00020273,2]
[361669313,1747678272999,-5294.37,0.00020273,2]
[361669314,1747678273008,-534.03,0.00020273,2]
[361669315,1747678273018,-430.0,0.00020273,2]
[361669316,1747678273028,-366.15657353,0.00020273,2]
[361669317,1747678273038,-566.9,0.00020273,2]
[361669318,1747678273047,-430.0,0.00020273,2]
[361669319,1747678273056,-2065.21,0.00020273,2]
[361669320,1747678273066,-537.77,0.00020273,2]
[361669321,1747678273075,-430.0,0.00020273,2]
[361669322,1747678273084,-430.0,0.00020273,2]
[361669323,1747678273094,-4975.86,0.00020273,2]
[361669324,1747678273104,-430.0,0.00020273,2]
[361669325,1747678273115,-835.39,0.00020273,2]
[361669326,1747678273125,-430.0,0.00020273,2]
[361669327,1747678273135,-1400.2,0.00020273,2]
[361669328,1747678273144,-1072.15,0.00020273,2]
[361669329,1747678273154,-1314.62,0.00020273,2]
[361669330,1747678273164,-1095.34,0.00020273,2]
[361669331,1747678273174,-430.0,0.00020273,2]
[361669332,1747678273183,-430.0,0.00020273,2]
[361669333,1747678273192,-1638.88,0.00020273,2]
[361669334,1747678273201,-1009.6,0.00020273,2]
[361669335,1747678273211,-430.0,0.00020273,2]
[361669336,1747678273220,-656.69,0.00020273,2]
[361669337,1747678273229,-7287.93,0.00020273,2]
[361669338,1747678273238,-430.0,0.00020273,2]
[361669339,1747678273247,-1675.27,0.00020273,2]
[361669340,1747678273256,-430.0,0.00020273,2]
[361669341,1747678273266,-4789.9,0.00020273,2]
[361669342,1747678273276,-430.0,0.00020273,2]
[361669343,1747678273286,-430.0,0.00020273,2]
[361669344,1747678273295,-582.76,0.00020273,2]
[361669345,1747678273305,-1475.08,0.00020273,2]
[361669346,1747678273314,-430.0,0.00020273,2]
[361669347,1747678273323,-3802.2,0.00020273,2]
[361669348,1747678273333,-441.87,0.00020273,2]
[361669349,1747678273343,-2022.39,0.00020273,2]
[361669350,1747678273352,-3870.66,0.00020273,2]
[361669351,1747678273361,-4521.89,0.00020273,2]
[361669352,1747678273371,-430.0,0.00020273,2]
[361669353,1747678273381,-623.36,0.00020273,2]
[361669354,1747678273390,-430.0,0.00020273,2]
[361669355,1747678273399,-1455.67,0.00020273,2]
[361669356,1747678273409,-430.0,0.00020273,2]
[361669357,1747678273418,-1638.01,0.00020273,2]
[361669358,1747678273428,-542.53,0.00020273,2]
[361669359,1747678273438,-861.13,0.00020273,2]
[361669360,1747678273447,-430.0,0.00020273,2]
[361669361,1747678273457,-735.09,0.00020273,2]
[361669362,1747678273466,-430.0,0.00020273,2]
[361669363,1747678273476,-446.73,0.00020273,2]
[361669364,1747678273486,-430.0,0.00020273,2]
[361669365,1747678273495,-906.22,0.00020273,2]
[361669366,1747678273505,-430.0,0.00020273,2]
[361669367,1747678273514,-430.0,0.00020273,2]
[361669368,1747678273523,-2900.95,0.00020273,2]
[361669369,1747678273533,-430.0,0.00020273,2]
[361669370,1747678273543,-430.0,0.00020273,2]
[361669371,1747678273552,-668.98,0.00020273,2]
[361669372,1747678273561,-806.41,0.00020273,2]
[361669373,1747678273570,-430.0,0.00020273,2]
[361669374,1747678273580,-430.0,0.00020273,2]
[361669375,1747678273589,-430.0,0.00020273,2]
[361669376,1747678273598,-853.48,0.00020273,2]
[361669377,1747678273607,-430.0,0.00020273,2]
[361669378,1747678273617,-996.23,0.00020273,2]
[361669379,1747678273626,-1223.52,0.00020273,2]
[361669380,1747678273635,-1390.5,0.00020273,2]
[361669381,1747678273645,-430.0,0.00020273,2]
[361669382,1747678273654,-430.0,0.00020273,2]
[361669383,1747678273664,-430.0,0.00020273,2]
[361669384,1747678273673,-1409.57,0.00020273,2]
[361669385,1747678273682,-2124.49,0.00020273,2]
[361669386,1747678273691,-701.29,0.00020273,2]
[361669387,1747678273700,-501.83,0.00020273,2]
[361669388,1747678273709,-1561.15,0.00020273,2]
[361669389,1747678273719,-441.96,0.00020273,2]
[361669390,1747678273728,-899.12,0.00020273,2]
[361669391,1747678273737,-1104.97,0.00020273,2]
[361669392,1747678273748,-430.0,0.00020273,2]
[361669393,1747678273757,-430.0,0.00020273,2]
[361669394,1747678273766,-2522.44,0.00020273,2]
[361669395,1747678273775,-468.08,0.00020273,2]
[361669396,1747678273784,-2904.2,0.00020273,2]
[361669397,1747678273793,-478.87,0.00020273,2]
[361669398,1747678273808,-1119.33,0.00020273,2]
[361669399,1747678273817,-1123.5,0.00020273,2]
[361669400,1747678273827,-561.73,0.00020273,2]
[361669401,1747678273837,-926.76,0.00020273,2]
[361669402,1747678273847,-1799.58,0.00020273,2]
[361669403,1747678273856,-430.0,0.00020273,2]
[361669404,1747678273865,-2130.66,0.00020273,2]
[361669405,1747678273875,-430.0,0.00020273,2]
[361669406,1747678273886,-430.0,0.00020273,2]
[361669407,1747678273896,-510.7,0.00020273,2]
[361669408,1747678273906,-430.0,0.00020273,2]
[361669409,1747678273915,-1184.09,0.00020273,2]
[361669410,1747678273924,-430.0,0.00020273,2]
[361669411,1747678273933,-736.8,0.00020273,2]
[361669412,1747678273943,-274.98,0.00020273,2]
[361669413,1747678273952,-581.31,0.00020273,2]
[361669414,1747678273962,-752.45,0.00020273,2]
[361669415,1747678273971,-695.3,0.00020273,2]
[361669416,1747678273980,-716.17,0.00020273,2]
[361669417,1747678273990,-1529.7,0.00020273,2]
[361669418,1747678273999,-1000.0,0.00020296,2]
[361669419,1747678274008,-2000.0,0.00020316,2]
[361669420,1747678274018,-164.16244609,0.00020316,2]
[361669421,1747678274028,-2000.0,0.00020316,2]
[361669422,1747678274037,-2000.0,0.00020316,2]
[361669423,1747678274047,-2000.0,0.00020316,2]
[361669424,1747678274056,-1619.50793466,0.00020316,2]
[361669425,1747678274065,-2002.05110032,0.00020316,2]
[361669426,1747678274075,-470.19970672,0.00020316,2]
[361669427,1747678274084,-2000.0,0.00020316,2]
[361669428,1747678274093,-1502.8258535,0.00020316,2]
[361669429,1747678274103,-2000.0,0.00020316,2]
[361669430,1747678274112,-2000.0,0.00020316,2]
[361669431,1747678274122,-2000.0,0.00020316,2]
[361669432,1747678274133,-2000.0,0.00020316,2]
[361669433,1747678274142,-625.80292787,0.00020316,2]
[361669434,1747678274152,-1701.12479844,0.00020316,2]
[361669435,1747678274162,-2000.0,0.00020316,2]